bitfinex/quotes_SOLUSD_20241125
["timestamp","ask_amount","ask_price","bid_price","bid_amount"]
[1732524304531,6.94430017,253.81,253.72,21.9706]
[1732524305405,6.4554,253.87,253.72,21.9706]
[1732524305624,6.94430017,253.83,253.72,26.8972]
[1732524307022,6.4554,253.87,253.72,26.8972]
[1732524307303,6.94430017,253.83,253.72,26.8972]
[1732524309412,8.031,253.87,253.7,1.9707]
[1732524309413,6.94430017,253.73,253.7,1.9707]
[1732524309737,6.94430017,253.71,253.65,1.9712]
[1732524309939,6.94430017,253.76,253.65,1.9712]
[1732524309940,6.94430017,253.69,253.65,1.9712]
[1732524310915,6.94430017,253.69,253.61,20.0]
[1732524311228,6.94430017,253.69,253.62,20.0]
[1732524312140,6.94430017,253.69,253.61,20.0]
[1732524313514,6.94430017,253.69,253.62,6.9]
[1732524316538,6.94430017,253.67,253.62,1.9714]
[1732524316923,15.8558,253.7,253.62,1.9714]
[1732524317124,6.94430017,253.67,253.62,1.9714]
[1732524317546,6.94430017,253.67,253.53,7.10413146]
[1732524317741,6.94430017,253.67,253.57,20.0]
[1732524318844,6.94430017,253.67,253.58,1.9717]
[1732524319431,6.94430017,253.62,253.54,1.972]
[1732524320847,6.94430017,253.62,253.47,6.9041]
[1732524321146,6.94430017,253.62,253.51,20.0]
[1732524322146,21.918,253.63,253.51,20.59150455]
[1732524322325,21.918,253.63,253.55,20.0]
[1732524323132,21.918,253.63,253.56,5.5213]
[1732524323340,21.918,253.63,253.59,20.0]
[1732524324722,6.5549,253.68,253.59,20.0]
[1732524325043,6.5549,253.68,253.56,20.5914138]
[1732524325257,6.5549,253.68,253.6,20.0]
[1732524327143,6.5549,253.68,253.61,20.0]
[1732524327347,6.1951,253.75,253.61,20.0]
[1732524327640,6.1951,253.75,253.61,20.59120447]
[1732524327951,6.1951,253.75,253.67,20.0]
[1732524328123,21.9998,253.81,253.71,20.0]
[1732524329133,21.9998,253.81,253.72,1.5765]
[1732524329332,21.9998,253.81,253.72,21.5765]
[1732524332850,6.94430017,253.8,253.72,21.5765]
[1732524333445,6.94430017,253.78,253.62,3.88834608]
[1732524333728,6.94430017,253.78,253.64,3.9425]
[1732524334650,6.94430017,253.78,253.65,20.0]
[1732524334831,6.94430017,253.78,253.65,5.5193]
[1732524335156,6.94430017,253.78,253.68,20.0]
[1732524336534,6.94430017,253.78,253.69,1.5767]
[1732524339055,6.94430017,253.78,253.71,1.5765]
[1732524340054,6.94430017,253.78,253.65,20.0]
[1732524340352,6.94430017,253.78,253.69,20.0]
[1732524341258,6.94430017,253.78,253.7,20.0]
[1732524341555,6.94430017,253.8,253.7,20.0]
[1732524343059,21.9998,253.81,253.71,20.0]
[1732524345257,21.9998,253.81,253.72,20.0]
[1732524345555,21.9998,253.81,253.73,20.0]
[1732524346234,21.9998,253.81,253.73,1.5764]
[1732524346434,28.94410017,253.81,253.73,1.5764]
[1732524347353,6.94430017,253.79,253.73,1.5764]
[1732524348948,6.94430017,253.79,253.73,21.5764]
[1732524349347,6.94430017,253.79,253.73,1.5764]
[1732524349654,6.94430017,253.79,253.65,3.9423]
[1732524350355,6.94430017,253.77,253.65,3.9423]
[1732524350555,6.94430017,253.79,253.65,3.9423]
[1732524350753,6.94430017,253.79,253.66,20.0]
[1732524350943,6.94430017,253.79,253.68,20.0]
[1732524351361,6.94430017,253.79,253.67,1.5768]
[1732524352146,6.94430017,253.79,253.7,20.0]
[1732524353043,6.94430017,253.79,253.71,1.9707]
[1732524353274,21.9998,253.81,253.71,1.9707]
[1732524353661,28.94410017,253.81,253.71,1.9707]
[1732524354651,6.94430017,253.79,253.71,6.8975]
[1732524354853,6.94430017,253.79,253.74,20.0]
[1732524355054,6.94430017,253.79,253.75,1.9704]
[1732524356272,6.94430017,253.77,253.67,24.9275]
[1732524357148,6.94430017,253.77,253.67,26.8985]
[1732524359069,6.94430017,253.77,253.7,20.0]
[1732524359276,6.94430017,253.77,253.71,20.0]
[1732524360268,6.94430017,253.77,253.72,1.9706]
[1732524362352,6.94430017,253.77,253.71,2.3649]
[1732524362672,21.9998,253.81,253.71,2.3649]
[1732524362673,6.94430017,253.79,253.71,2.3649]
[1732524366275,6.94430017,253.77,253.71,2.3649]
[1732524367979,6.94430017,253.79,253.71,2.3649]
[1732524369579,21.9998,253.81,253.71,2.3649]
[1732524370269,28.94410017,253.81,253.71,2.3649]
[1732524370466,21.9998,253.81,253.71,2.3649]
[1732524370677,21.9998,253.81,253.71,23.776884]
[1732524370868,21.9998,253.81,253.74,20.0]
[1732524372488,21.9998,253.81,253.64,1.9712]
[1732524372778,21.9998,253.81,253.66,4.9278]
[1732524372779,6.94430017,253.77,253.66,4.9278]
[1732524373381,21.9998,253.81,253.66,4.9278]
[1732524373570,6.94430017,253.79,253.66,4.9278]
[1732524373767,6.94430017,253.79,253.67,20.0]
[1732524374269,6.94430017,253.79,253.68,6.8983]
[1732524374874,6.94430017,253.79,253.71,20.0]
[1732524375486,6.94430017,253.79,253.69,6.8981]
[1732524375986,6.94430017,253.79,253.72,20.0]
[1732524376778,6.94430017,253.79,253.69,4.9272]
[1732524376970,6.94430017,253.79,253.7,1.9708]
[1732524377170,6.94430017,253.79,253.7,6.8978]
[1732524377571,21.9998,253.81,253.71,23.776884]
[1732524380389,21.9998,253.81,253.72,6.8972]
[1732524381987,21.9998,253.81,253.76,1.9703]
[1732524385271,21.9998,253.81,253.79,20.0]
[1732524386470,21.9998,253.81,253.77,1.9702]
[1732524386673,28.94410017,253.81,253.77,1.9702]
[1732524391269,6.94430017,253.79,253.77,1.9702]
[1732524391686,6.94430017,253.79,253.73,1.9705]
[1732524391867,6.94430017,253.77,253.73,1.9705]
[1732524392279,6.94430017,253.78,253.73,1.9705]
[1732524393095,6.94430017,253.78,253.74,20.0]
[1732524394391,6.94430017,253.78,253.73,1.9705]
[1732524396693,6.94430017,253.78,253.74,20.0]
[1732524397697,6.94430017,253.78,253.75,1.9704]
[1732524399778,6.94430017,253.76,253.75,1.9704]
[1732524399979,6.94430017,253.78,253.75,1.9704]
[1732524403389,6.94430017,253.8,253.75,1.9704]
[1732524404107,6.94430017,253.8,253.72,20.0]
[1732524404979,21.9998,253.81,253.72,20.0]
[1732524406277,21.9998,253.81,253.73,6.8969]
[1732524406595,21.9998,253.81,253.76,20.0]
[1732524407108,6.5342,253.86,253.76,20.0]
[1732524408405,6.5342,253.86,253.77,6.8959]
[1732524408594,6.5342,253.86,253.8,20.0]
[1732524410404,6.5342,253.86,253.75,7.67245838]
[1732524410405,6.5342,253.86,253.78,26.8957]
[1732524410914,13.47850017,253.86,253.78,26.8957]
[1732524413914,13.47850017,253.86,253.78,21.9702]
[1732524414212,6.94430017,253.84,253.78,1.9702]
[1732524415215,6.16640985,254.02,253.79,11.79]
[1732524415404,6.16640985,254.13,254.02,20.0]
[1732524415594,15.6191,254.16,254.1,20.0]
[1732524416403,15.6191,254.16,254.03,35.07243459]
[1732524416404,15.6191,254.16,254.06,20.0]
[1732524416925,6.94430017,254.14,254.01,20.0]
[1732524417413,6.94430017,254.12,254.02,1.9683]
[1732524417986,15.6191,254.16,254.02,1.9683]
[1732524418185,6.94430017,254.13,254.02,1.9683]
[1732524418605,15.6191,254.16,254.02,1.9683]
[1732524418916,6.94430017,254.13,254.02,1.9683]
[1732524419293,6.94430017,254.11,254.02,1.9683]
[1732524419898,15.6191,254.16,253.93,0.59041018]
[1732524419899,6.94430017,254.09,253.94,25.745784]
[1732524420384,6.94430017,254.07,253.94,1.9689]
[1732524421188,6.94430017,254.07,253.94,1.5751]
[1732524421388,6.94430017,254.07,253.93,4.9225]
[1732524421789,6.94430017,254.07,253.94,20.0]
[1732524422096,6.94430017,254.03,253.91,1.5753]
[1732524423019,6.94430017,254.03,253.88,3.9388]
[1732524423311,6.94430017,254.03,253.92,20.0]
[1732524423486,6.94430017,253.99,253.88,3.9388]
[1732524423687,6.94430017,253.97,253.87,1.5756]
[1732524424824,6.94430017,253.97,253.83,3.9395]
[1732524425032,6.5259,253.98,253.83,3.9395]
[1732524425033,6.94430017,253.95,253.83,3.9395]
[1732524425195,6.5259,253.98,253.83,3.9395]
[1732524425518,6.94430017,253.91,253.8,1.576]
[1732524426392,10.86816852,253.91,253.78,3.9403]
[1732524426615,26.09146852,253.91,253.78,3.9403]
[1732524426789,26.09146852,253.91,253.75,17.7336]
[1732524426994,26.09146852,253.91,253.76,23.776884]
[1732524427623,26.09146852,253.91,253.79,20.0]
[1732524428221,26.09146852,253.91,253.78,20.0]
[1732524429216,26.09146852,253.91,253.79,1.5761]
[1732524429408,26.09146852,253.91,253.79,21.5761]
[1732524430034,15.2233,253.91,253.79,25.5163]
[1732524431718,15.2233,253.91,253.83,20.0]
[1732524433225,22.6399,253.98,253.87,20.0]
[1732524434306,22.6399,253.98,253.88,20.0]
[1732524436529,33.50806852,253.98,253.89,1.5754]
[1732524436706,33.50806852,253.98,253.89,21.5754]
[1732524436898,22.6399,253.98,253.89,21.5754]
[1732524439235,33.50806852,253.98,253.89,21.5754]
[1732524439751,10.86816852,253.94,253.89,1.5754]
[1732524440818,10.86816852,253.96,253.83,20.0]
[1732524441143,10.86816852,253.94,253.83,20.0]
[1732524441444,10.86816852,253.92,253.83,20.0]
[1732524442344,10.86816852,253.92,253.81,20.0]
[1732524442637,10.86816852,253.9,253.81,20.0]
[1732524442933,10.86816852,253.9,253.82,1.5759]
[1732524443739,10.86816852,253.88,253.73,8.92974966]
[1732524443923,10.86816852,253.86,253.74,5.5174]
[1732524444435,10.86816852,253.84,253.74,5.5174]
[1732524445355,21.1352,253.85,253.74,5.5174]
[1732524445356,10.86816852,253.82,253.74,1.5764]
[1732524445717,10.86816852,253.82,253.64,79.6170268]
[1732524445929,10.86816852,253.82,253.72,20.0]
[1732524446238,21.1352,253.85,253.72,20.0]
[1732524448044,21.1352,253.85,253.73,5.5175]
[1732524448225,21.1352,253.85,253.76,20.0]
[1732524448817,21.73,253.91,253.8,20.0]
[1732524450147,21.73,253.91,253.81,1.5759]
[1732524451851,21.73,253.91,253.84,20.0]
[1732524453345,10.0,254.07,253.85,23.776884]
[1732524453346,21.9224,253.97,253.85,23.776884]
[1732524453547,21.9224,253.97,253.88,20.0]
[1732524453726,21.9224,253.97,253.89,21.5754]
[1732524455443,10.86816852,253.96,253.89,21.5754]
[1732524455648,10.86816852,253.96,253.89,1.5754]
[1732524456549,10.86816852,253.96,253.85,20.0]
[1732524456758,10.86816852,253.96,253.83,20.0]
[1732524457828,10.86816852,253.96,253.84,1.5757]
[1732524458252,10.86816852,253.96,253.85,20.0]
[1732524458957,10.86816852,253.96,253.83,20.0]
[1732524459135,10.86816852,253.96,253.83,21.5758]
[1732524459649,10.86816852,253.96,253.83,25.5154]
[1732524459851,21.9224,253.97,253.83,25.5154]
[1732524463370,23.4974,253.97,253.83,25.5154]
[1732524463736,10.86816852,253.96,253.83,25.5154]
[1732524466555,10.86816852,253.94,253.83,1.5758]
[1732524467946,12.44326852,253.94,253.83,1.5758]
[1732524468962,12.44326852,253.94,253.76,23.776884]
[1732524469540,10.86816852,253.94,253.76,23.776884]
[1732524469943,10.86816852,253.94,253.79,20.0]
[1732524470652,1.5751,253.95,253.79,20.0]
[1732524471170,1.5751,253.95,253.8,6.8951]
[1732524471369,1.5751,253.95,253.83,20.0]
[1732524472168,1.5751,253.95,253.84,1.9697]
[1732524473644,1.575,253.96,253.84,1.9697]
[1732524473839,21.9224,253.97,253.84,1.9697]
[1732524474041,21.9224,253.97,253.87,20.0]
[1732524474973,21.9224,253.97,253.82,3.925]
[1732524475155,135.7,254.01,253.86,20.0]
[1732524475478,10.86816852,254.02,253.86,20.0]
[1732524475968,10.86816852,254.02,253.86,23.925]
[1732524476769,12.44276852,254.02,253.86,23.925]
[1732524477567,12.44276852,254.02,253.87,6.8932]
[1732524477761,10.86816852,254.0,253.9,20.0]
[1732524479060,12.44296852,254.0,253.91,1.9692]
[1732524479267,10.86816852,253.98,253.91,1.9692]
[1732524481481,10.86816852,253.98,253.86,20.0]
[1732524481781,12.44306852,253.98,253.87,20.0]
[1732524482952,12.44306852,253.98,253.88,1.9694]
[1732524483575,10.86816852,253.94,253.84,1.9697]
[1732524483954,10.86816852,253.98,253.84,1.9697]
[1732524484159,10.86816852,253.98,253.84,6.39678154]
[1732524484763,12.44296852,254.0,253.87,20.0]
[1732524484969,10.86816852,254.0,253.87,20.0]
[1732524485162,10.86816852,254.02,253.88,1.9694]
[1732524486360,6.95009549,254.02,253.88,1.9694]
[1732524486670,8.52469549,254.02,253.88,6.8929]
[1732524486874,8.52469549,254.02,253.91,20.0]
[1732524488153,6.95009549,254.0,253.91,20.0]
[1732524488405,10.86100035,254.0,253.91,20.0]
[1732524488579,10.86100035,254.0,253.89,6.8926]
[1732524488859,10.86100035,254.0,253.92,20.0]
[1732524489578,10.86100035,254.02,253.92,20.0]
[1732524489779,12.43570035,254.02,253.93,1.969]
[1732524491185,10.86100035,253.98,253.87,20.0]
[1732524491363,10.86100035,253.98,253.88,20.0]
[1732524492267,10.86100035,253.98,253.89,1.9693]
[1732524494483,10.86100035,253.96,253.89,1.9693]
[1732524494663,10.86100035,253.96,253.85,1.9696]
[1732524495882,10.86100035,253.92,253.85,1.9696]
[1732524497161,12.43620035,253.94,253.85,1.9696]
[1732524497588,10.86100035,253.96,253.85,1.9696]
[1732524498795,10.86100035,253.94,253.85,1.9696]
[1732524499598,10.86100035,253.92,253.82,20.0]
[1732524500295,10.86100035,253.94,253.82,20.0]
[1732524500481,10.86100035,253.96,253.83,6.8943]
[1732524500681,146.56100035,253.98,253.86,20.0]
[1732524500994,10.86100035,253.98,253.86,20.0]
[1732524501699,12.43590035,253.98,253.86,20.0]
[1732524502572,12.43590035,253.98,253.87,1.5756]
[1732524503292,10.86100035,254.0,253.87,1.5756]
[1732524503988,10.86100035,254.0,253.87,5.5146]
[1732524504371,10.86100035,254.0,253.9,20.0]
[1732524504572,10.86100035,254.0,253.88,1.5755]
[1732524504799,1.5747,254.01,253.9,20.0]
[1732524504977,10.86100035,254.0,253.9,20.0]
[1732524505172,10.86100035,254.0,253.91,20.0]
[1732524506499,10.86100035,254.0,253.92,1.5752]
[1732524507986,10.86100035,254.02,253.92,1.5752]
[1732524508373,6.95072194,254.01,253.92,1.5752]
[1732524510005,6.95072194,254.01,253.9,20.0]
[1732524510687,21.8747,254.03,253.9,20.0]
[1732524510922,6.95072194,254.02,253.9,20.0]
[1732524512600,6.95072194,254.02,253.91,1.5753]
[1732524512806,6.95072194,254.02,253.92,20.0]
[1732524514906,6.95072194,254.02,253.93,1.5752]
[1732524515425,6.95072194,254.04,253.93,1.5752]
[1732524515807,8.52512194,254.06,253.93,1.5752]
[1732524516002,6.95072194,254.04,253.93,1.5752]
[1732524521614,23.174,254.09,253.93,5.5132]
[1732524521924,6.95072194,254.11,253.96,20.0]
[1732524522104,6.95072194,254.09,253.96,20.0]
[1732524522597,6.95072194,254.07,253.96,20.0]
[1732524522797,6.95072194,254.07,253.97,1.5749]
[1732524523419,6.95072194,254.07,253.97,21.5749]
[1732524523929,6.95072194,254.04,253.97,21.5749]
[1732524525620,6.95072194,254.06,253.97,21.5749]
[1732524526604,157.844,254.15,253.97,21.5749]
[1732524526806,6.95072194,254.1,253.97,25.5123]
[1732524528012,6.95072194,254.1,254.01,20.0]
[1732524529427,22.144,254.15,254.01,20.0]
[1732524529631,6.95072194,254.14,254.01,20.0]
[1732524529929,6.95072194,254.14,254.02,1.5746]
[1732524531332,6.95072194,254.14,254.03,20.0]
[1732524532322,6.95072194,254.14,254.01,20.0]
[1732524532626,6.95072194,254.14,254.01,26.8894]
[1732524533725,6.95072194,254.13,254.01,26.8894]
[1732524536324,1.5735,254.2,254.05,20.0]
[1732524536536,22.4235,254.21,254.05,20.0]
[1732524536729,6.95072194,254.2,254.09,20.0]
[1732524537327,6.95072194,254.18,254.09,20.0]
[1732524537831,6.95072194,254.15,254.04,20.0]
[1732524538004,6.95072194,254.15,254.05,20.0]
[1732524538525,6.95072194,254.17,254.06,1.968]
[1732524538920,6.95072194,254.17,254.06,21.968]
[1732524539431,6.95072194,254.17,254.06,1.968]
[1732524540527,6.95072194,254.15,254.06,1.968]
[1732524540830,22.4235,254.21,254.06,1.968]
[1732524541019,0.4416979,254.22,254.09,20.0]
[1732524541222,0.4416979,254.22,254.07,4.96956569]
[1732524541223,0.4416979,254.22,254.13,20.0]
[1732524541545,0.4416979,254.22,254.14,1.9674]
[1732524541838,0.4416979,254.22,254.17,20.0]
[1732524542204,7.39241984,254.22,254.17,20.0]
[1732524542424,7.39241984,254.22,254.14,1.9674]
[1732524544425,0.4416979,254.22,254.14,1.9674]
[1732524544629,7.39241984,254.22,254.14,1.9674]
[1732524545020,0.4416979,254.22,254.14,1.9674]
[1732524547614,0.4416979,254.22,254.17,20.0]
[1732524549016,0.4416979,254.22,254.18,1.9671]
[1732524549627,6.95072194,254.2,254.18,1.9671]
[1732524550014,0.4416979,254.22,254.18,1.9671]
[1732524551013,0.4416979,254.22,254.14,4.9185]
[1732524551446,0.4416979,254.22,254.14,24.9185]
[1732524554036,0.4416979,254.22,254.18,20.0]
[1732524555048,0.4416979,254.22,254.15,1.9673]
[1732524555253,0.4416979,254.22,254.17,20.0]
[1732524555749,0.4416979,254.22,254.18,20.0]
[1732524557243,0.4416979,254.22,254.16,1.9672]
[1732524557825,0.4416979,254.22,254.19,20.0]
[1732524558035,0.4416979,254.22,254.16,6.8853]
[1732524558036,0.4416979,254.22,254.2,20.0]
[1732524558752,0.4416979,254.22,254.19,20.0]
[1732524559049,0.4416979,254.22,254.2,23.776884]
[1732524559766,0.4416979,254.22,254.21,1.9668]
[1732524564542,0.4416979,254.22,254.17,30.661884]
[1732524564736,7.39241984,254.22,254.17,1.9671]
[1732524565057,0.4416979,254.22,254.17,1.9671]
[1732524565352,0.4416979,254.22,254.13,4.9187]
[1732524566355,7.39241984,254.22,254.15,20.0]
[1732524566556,6.95072194,254.2,254.12,1.9675]
[1732524566739,6.95072194,254.18,254.12,1.9675]
[1732524567341,0.4416979,254.22,254.05,75.77216779]
[1732524567558,0.4416979,254.22,254.06,21.69757585]
[1732524568049,0.4416979,254.22,254.09,20.0]
[1732524568646,0.4416979,254.22,254.13,20.0]
[1732524568859,0.4416979,254.22,254.14,1.9674]
[1732524569061,0.4416979,254.22,254.15,20.0]
[1732524570165,0.4416979,254.22,254.12,4.9188]
[1732524570166,0.4416979,254.22,254.13,20.0]
[1732524570466,0.4416979,254.22,254.13,21.9674]
[1732524570759,0.4416979,254.22,254.17,20.0]
[1732524572437,0.4416979,254.22,254.18,1.9671]
[1732524575454,6.95072194,254.21,254.09,20.0]
[1732524575644,6.95072194,254.19,254.1,1.9677]
[1732524576561,6.95072194,254.17,254.1,1.9677]
[1732524577345,6.95072194,254.17,254.06,23.776884]
[1732524578351,6.95072194,254.17,254.1,1.9677]
[1732524580950,6.95072194,254.15,254.1,1.9677]
[1732524581655,0.4416979,254.22,254.01,7.89934368]
[1732524581656,6.95072194,254.12,254.01,4.9209]
[1732524582254,6.95072194,254.12,254.01,6.8893]
[1732524582467,6.95072194,254.11,254.01,6.8893]
[1732524583169,6.95072194,254.1,254.01,6.8893]
[1732524583664,6.95072194,254.12,254.01,6.8893]
[1732524584161,6.95072194,254.12,254.04,20.0]
[1732524586361,6.95072194,254.12,254.05,1.9681]
[1732524586952,6.95072194,254.1,254.05,1.9681]
[1732524587139,6.95072194,254.08,254.04,21.9681]
[1732524587456,6.95072194,254.08,254.04,1.9681]
[1732524587662,6.95072194,254.1,254.04,1.9681]
[1732524588867,6.95072194,254.1,254.0,20.0]
[1732524589076,6.95072194,254.11,254.01,20.0]
[1732524589368,21.5578,254.13,254.05,20.0]
[1732524590272,21.5578,254.13,254.06,1.968]
[1732524591561,21.5578,254.13,254.07,20.0]
[1732524592649,21.5578,254.13,254.08,1.9678]
[1732524595165,6.95072194,254.18,254.08,1.9678]
[1732524596176,6.95072194,254.18,254.09,23.776884]
[1732524596378,6.95072194,254.18,254.12,20.0]
[1732524596871,22.5932,254.19,254.12,20.0]
[1732524597077,22.5932,254.19,254.16,20.0]
[1732524597386,22.5932,254.19,254.16,21.9672]
[1732524598674,0.4416979,254.22,254.16,21.9672]
[1732524598979,0.4416979,254.22,254.17,23.776884]
[1732524600560,0.4416979,254.22,254.18,1.9671]
[1732524602080,0.4416979,254.22,254.2,20.0]
[1732524602384,0.4416979,254.22,254.21,20.0]
[1732524602588,0.4416979,254.22,254.21,21.9668]
[1732524602760,0.4416979,254.22,254.21,1.9668]
[1732524603166,0.4416979,254.22,254.21,25.743684]
[1732524603858,0.4416979,254.22,254.21,1.9668]
[1732524609184,0.4416979,254.22,254.21,25.743684]
[1732524611385,0.4416979,254.22,254.21,23.776884]
[1732524612995,9.79e-05,254.22,254.21,25.743684]
[1732524618894,9.79e-05,254.22,254.21,41.23211047]
[1732524619189,9.79e-05,254.22,254.21,45.45043718]
[1732524619384,9.79e-05,254.22,254.21,34.86059225]
[1732524619770,9.79e-05,254.22,254.21,30.64226554]
[1732524625999,9.79e-05,254.22,254.21,6.86538154]
[1732524626372,9.79e-05,254.22,254.21,1.9668]
[1732524626990,6.0275,254.21,254.13,1.5739]
[1732524627277,6.95072194,254.2,254.13,1.5739]
[1732524628200,6.95072194,254.2,254.06,23.222]
[1732524628495,6.95072194,254.2,254.06,13.3822]
[1732524628997,6.95072194,254.2,254.06,19.1471537]
[1732524629495,6.0275,254.21,254.06,19.1471537]
[1732524630097,6.0275,254.21,254.07,23.776884]
[1732524630296,6.0275,254.21,254.13,23.776884]
[1732524630595,6.0275,254.21,254.16,20.0]
[1732524632176,6.0275,254.21,254.18,2.3605]
[1732524632976,6.0275,254.21,254.2,20.0]
[1732524633501,6.0275,254.21,254.19,23.776884]
[1732524634197,6.0275,254.21,254.2,20.0]
[1732524634399,6.0275,254.21,254.2,43.776884]
[1732524635973,6.0275,254.21,254.2,46.137184]
[1732524640604,15.9886979,254.22,254.2,46.137184]
[1732524640605,15.9886979,254.22,254.21,23.776884]
[1732524640905,9.79e-05,254.22,254.21,23.776884]
[1732524641104,9.79e-05,254.22,254.21,28.95165818]
[1732524642809,9.79e-05,254.22,254.21,23.776884]
[1732524644179,9.79e-05,254.22,254.21,28.95165818]
[1732524645286,9.79e-05,254.22,254.21,23.776884]
[1732524647704,9.79e-05,254.22,254.2,2.3603]
[1732524648807,9.79e-05,254.22,254.16,8.2624]
[1732524649007,9.79e-05,254.22,254.2,43.776884]
[1732524650697,9.79e-05,254.22,254.21,26.137084]
[1732524656186,9.79e-05,254.22,254.21,31.31185818]
[1732524660106,9.79e-05,254.22,254.21,26.137084]
[1732524660316,9.79e-05,254.22,254.21,2.3602]
[1732524661618,9.79e-05,254.22,254.2,23.776884]
[1732524663703,9.79e-05,254.22,254.21,26.137084]
[1732524665320,9.79e-05,254.22,254.21,31.31185818]
[1732524667820,9.79e-05,254.22,254.21,35.23785818]
[1732524670013,9.79e-05,254.22,254.21,31.31185818]
[1732524670431,9.79e-05,254.22,254.21,35.23785818]
[1732524670927,9.79e-05,254.22,254.21,31.31185818]
[1732524671505,9.79e-05,254.22,254.21,35.23785818]
[1732524672200,9.79e-05,254.22,254.21,31.31185818]
[1732524674426,9.79e-05,254.22,254.21,35.23785818]
[1732524674607,9.79e-05,254.22,254.21,31.31185818]
[1732524674807,9.79e-05,254.22,254.21,35.23785818]
[1732524675305,2.54169854,254.26,254.25,43.776884]
[1732524676419,2.54169854,254.26,254.25,46.136684]
[1732524676725,16.1937,254.27,254.26,23.776884]
[1732524677428,14.1266,254.27,254.26,23.776884]
[1732524677616,10.6673,254.27,254.26,28.95165818]
[1732524678206,4.8116,254.27,254.26,28.95165818]
[1732524678429,182.38295846,254.29,254.28,43.776884]
[1732524680425,182.38295846,254.29,254.28,46.136484]
[1732524681333,164.98885846,254.29,254.28,51.31125818]
[1732524681515,155.60655846,254.29,254.28,51.31125818]
[1732524681716,154.00655846,254.29,254.28,51.31125818]
[1732524682026,150.75935846,254.29,254.28,51.31125818]
[1732524682334,134.69175846,254.29,254.28,51.31125818]
[1732524682511,130.15985846,254.29,254.28,51.31125818]
[1732524682836,123.84785846,254.29,254.28,51.31125818]
[1732524683133,110.20545846,254.29,254.28,51.31125818]
[1732524683331,88.95665846,254.29,254.28,51.31125818]
[1732524683565,74.04665846,254.29,254.28,51.31125818]
[1732524683717,26.98685846,254.29,254.28,51.31125818]
[1732524683924,18.69365846,254.29,254.28,51.31125818]
[1732524684233,14.42995846,254.29,254.28,51.31125818]
[1732524684435,10.17395846,254.29,254.28,51.31125818]
[1732524684644,6.32165846,254.29,254.28,51.31125818]
[1732524684939,2.46935846,254.29,254.28,51.31125818]
[1732524685814,0.28655846,254.29,254.28,51.31125818]
[1732524686011,5.846e-05,254.29,254.28,51.31125818]
[1732524694041,5.846e-05,254.29,254.28,55.65741823]
[1732524694428,179.89044769,254.31,254.28,55.65741823]
[1732524694740,155.55174769,254.31,254.3,45.742984]
[1732524694919,148.71204769,254.31,254.3,50.91775818]
[1732524695127,145.23784769,254.31,254.3,50.91775818]
[1732524695638,139.36064769,254.31,254.3,50.91775818]
[1732524695838,136.55664769,254.31,254.3,50.91775818]
[1732524696227,133.22934769,254.31,254.3,50.91775818]
[1732524696427,130.25264769,254.31,254.3,50.91775818]
[1732524697538,128.19674769,254.31,254.3,50.91775818]
[1732524697744,126.14084769,254.31,254.3,50.91775818]
[1732524698351,106.25954841,254.31,254.3,50.91775818]
[1732524698956,87.85954841,254.31,254.3,50.91775818]
[1732524699128,61.96984841,254.31,254.3,50.91775818]
[1732524699455,56.54314841,254.31,254.3,50.91775818]
[1732524699645,53.54644841,254.31,254.3,50.91775818]
[1732524700144,50.47454841,254.31,254.3,50.91775818]
[1732524700646,48.22494841,254.31,254.3,50.91775818]
[1732524701345,45.83254841,254.31,254.3,50.91775818]
[1732524701846,42.10654841,254.31,254.3,50.91775818]
[1732524702154,25.89004841,254.31,254.3,54.84375818]
[1732524702354,20.35184841,254.31,254.3,54.84375818]
[1732524702548,20.35184841,254.31,254.3,50.91775818]
[1732524703057,8.35354841,254.31,254.3,54.84375818]
[1732524703348,2.80654841,254.31,254.3,54.84375818]
[1732524703554,4.841e-05,254.31,254.3,54.84375818]
[1732524703754,4.841e-05,254.31,254.3,50.91775818]
[1732524705249,182.41278846,254.38,254.34,23.776884]
[1732524705634,182.41278846,254.38,254.35,25.742584]
[1732524712750,182.41278846,254.38,254.35,1.9657]